Cogmind - Beta 13 @@@ ROGUE MODE // 2024.04.12 @ 22:36:19 Player: CanadianCogs Result: Core destroyed Performance ------------- Evolutions (1) 500 Regions Visited (2) 400 Robots Destroyed (38) 190 Value Destroyed (847) 847 Prototype IDs (0) 0 Alien Tech Used (0) 0 Bonus (61) 61 TOTAL SCORE: 1998 Bonus ------- High Alert Combat Kills 61 Cogmind --------- Core Integrity 0/400 Matter 42/300 Energy 100/100 System Corruption 0% Temperature Cool (0) Movement Core (50) Location -9/Materials Parts ------- > --- POWER (1) -------- (None) > --- PROPULSION (2) --- (None) > --- UTILITY (2) ------ Signal Interpreter > --- WEAPON (4) ------- (None) > --- INVENTORY (5) ---- Improved Terrain Scanner ECM Suite Hardlight Generator Hardlight Generator Shield Generator Peak State ------------ > --- POWER ------------ Ion Engine > --- PROPULSION ------- Light Treads Light Treads > --- UTILITY ---------- Signal Interpreter Improved Terrain Scanner > --- WEAPON ----------- Heavy Assault Cannon Heavy Assault Cannon > --- INVENTORY -------- ECM Suite Heavy Assault Cannon [Rating: 19] Favorites ----------- Power Ion Engine Engine Ion Engine Propulsion Light Treads Treads Light Treads Leg Aluminum Leg Utility Signal Interpreter Device Improved Terrain Scanner Processor Signal Interpreter Protection Backup Plating I Weapon Heavy Assault Cannon Energy Gun Medium Laser Ballistic Gun Light Assault Rifle Ballistic Cannon Heavy Assault Cannon Launcher Grenade Launcher Special Weapon Mining Laser Build | -11 -10 -9 ------- Run | Yrd Mat Mat Slots Evolved 2 | . . 2 Power . | . . . Propulsion . | . . . Utility . | . . . Weapon 2 | . . 2 Parts Attached 36 | 4 19 13 Power 5 | . 4 1 Engine 5 | . 4 1 Core . | . . . Reactor . | . . . Propulsion 7 | 2 4 1 Treads 5 | . 4 1 Leg 2 | 2 . . Wheel . | . . . Hover . | . . . Flight . | . . . Utility 9 | . 5 4 Device 5 | . 3 2 Storage . | . . . Processor 2 | . 2 . Hackware . | . . . Protection 2 | . . 2 Artifact . | . . . Weapon 15 | 2 6 7 Energy Gun 3 | . 3 . Energy Cannon . | . . . Ballistic Gun 3 | 2 1 . Ballistic Cannon 2 | . . 2 Launcher 5 | . . 5 Special Weapon 2 | . 2 . Impact Weapon . | . . . Slashing Weapon . | . . . Piercing Weapon . | . . . Special Melee Weapon . | . . . Unidentified Prototypes . | . . . Parts Lost 13 | . 4 9 Power 2 | . 1 1 Propulsion 2 | . . 2 Utility 4 | . 1 3 Weapon 5 | . 2 3 Highest Loss Streak 7 | . 2 7 To Critical Strikes . | . . . Average Slot Usage (%) 82 | . 89 64 Engine 11 | . 11 9 Treads 24 | . 26 17 Device 7 | . 7 7 Processor 15 | . 16 11 Energy Gun 6 | . 8 . Ballistic Gun 5 | . 8 . Ballistic Cannon 5 | . . 18 Special Weapon 4 | . 6 . Naked Turns . | . . . Heaviest Build 31 | 2 12 31 Greatest Support 40 | 20 40 40 Greatest Overweight (x) 1 | . . 1 Average Overweight (x) . | . . . Largest Inventory Capacity 5 | 5 5 5 Average Capacity 5 | 5 5 5 Most Carried 5 | 5 5 5 Average Carried 4 | 3 4 4 Final Capacity 5 | 5 5 5 Final Carried 5 | 4 5 5 Class Distribution -------------------- 75% | Mutant 24% | Gunner Dominant Class ---------------- Mutant | -10/Materials Gunner | -9/Materials Resources | -11 -10 -9 ----------- Run | Yrd Mat Mat Matter Collected 780 | 227 256 297 Remotely 177 | . 36 141 Salvage Created 716 | . 416 300 Parts 62 | . 30 32 Haulers Intercepted . | . . . Recyclers Shooed . | . . . Parts Field Recycled . | . . . Retrieved Matter . | . . . Parts Self-Destructed . | . . . Prevented . | . . . Kills | -11 -10 -9 ------- Run | Yrd Mat Mat Combat Hostiles Destroyed 34 | . 14 20 Guns 13 | . 13 . Cannons 19 | . 1 18 AOE 2 | . . 2 Classes Destroyed 6 | . 3 3 Tunneler 1 | . 1 . Recycler 1 | . . 1 Watcher 2 | . . 2 Swarmer 17 | . 6 11 Grunt 16 | . 8 8 Sentry 1 | . . 1 Best Kill Streak 7 | . 4 7 Combat Bots Only 6 | . 3 6 Max Kills in Single Turn 2 | . 1 2 Gunslinging . | . . . Exploded 1 | . . 1 Melee . | . . . Uniques/NPCs Destroyed . | . . . Combat | -11 -10 -9 -------- Run | Yrd Mat Mat Hostile Shots Fired 277 | . 94 183 Missed 77 | . 24 53 Damage Taken 2057 | . 679 1378 Core 489 | . 88 401 Absorbed by Shields . | . . . Core Remaining (%) 82 | 100 64 . Volleys Fired 82 | . 46 36 Largest 2 | . 2 2 Hottest 200 | . 200 120 Shots Fired 145 | . 84 61 Gun 75 | . 75 . Cannon 56 | . . 56 Launcher 5 | . . 5 Special 9 | . 9 . Kinetic 97 | . 41 56 Thermal 43 | . 43 . Explosive 5 | . . 5 Electromagnetic . | . . . Robot Hit Streak 7 | . 7 5 Robot Miss Streak 6 | . 6 5 Penetration Max 1 | . . 1 Secondary Targets 1 | . 1 . Max Gunslinging Chain 1 | . 1 . Shots Hit Robots 74 | . 45 29 Core Hits 41 | . 24 17 Critical Kills . | . . . Critical Parts Destroyed . | . . . Critical Strikes 10 | . 4 6 Burn 4 | . 4 . Blast 6 | . . 6 Melee Attacks . | . . . Impact . | . . . Slashing . | . . . Piercing . | . . . Sneak Attacks . | . . . Combat Hostiles . | . . . Follow-up Attacks . | . . . Damage Inflicted 2630 | . 560 2070 Guns 462 | . 462 . Cannons 1861 | . . 1861 Explosions 175 | . . 175 Melee . | . . . Ramming 36 | . 2 34 Kinetic 2035 | . 174 1861 Thermal 384 | . 384 . Explosive 175 | . . 175 Electromagnetic . | . . . Impact . | . . . Slashing . | . . . Piercing . | . . . Highest Corruption 3 | . 3 . Average Corruption 2 | . 2 . Corruption Purged . | . . . Corruption Blocked . | . . . Effects 20 | . 20 . Message Errors 3 | . 3 . Matter Fused 4 | . 4 . Heat Flow Errors 4 | . 4 . Energy Discharges 2 | . 2 . Parts Rejected 1 | . 1 . Data Loss (minor) 3 | . 3 . Data Loss (major) 1 | . 1 . Alerts 2 | . 2 . Overload Shots . | . . . Overflow Damage 169 | . . 169 Projectiles 139 | . . 139 Explosions 30 | . . 30 Melee . | . . . Knockbacks 9 | . . 9 Impact . | . . . Kinetic 9 | . . 9 Secondary . | . . . Self-Inflicted Damage 41 | . . 41 Shots 1 | . . 1 Rammed 11 | . . 11 Targets Rammed 12 | . 1 11 Kicked . | . . . Crushed 1 | . 1 . Highest Temperature 452 | . 330 452 Average Temperature 125 | . 122 129 Received Heat Transfer 567 | . 207 360 Effects 3 | . . 3 Shutdowns 1 | . . 1 Interference 2 | . . 2 Siege Activations . | . . . Robots Corrupted . | . . . Combat Hostiles . | . . . Parts Fried . | . . . Impact Corruptions . | . . . Robots Melted . | . . . Combat Hostiles . | . . . Parts Melted 2 | . 2 . Heat Transferred 1347 | . 1347 . Parts Sabotaged . | . . . Parts Stolen . | . . . Parts Stripped . | . . . Power Chain Reactions . | . . . Alert | -11 -10 -9 ------- Run | Yrd Mat Mat Peak Influence 538 | . 253 538 Initial 27 | . . 27 Average 145 | . 104 265 Maximum Alert Level 2 | . 1 2 Low Security (%) 79 | 100 95 35 Level 1 15 | . 4 44 Level 2 5 | . . 20 Level 3 . | . . . Level 4 . | . . . Level 5 . | . . . High Security . | . . . Max Security . | . . . Squads Dispatched 11 | . 7 4 Investigation 9 | . 6 3 Extermination . | . . . Reinforcement 2 | . 1 1 Assault . | . . . Garrison . | . . . Intercept . | . . . Searches Triggered . | . . . Construction Impeded . | . . . Haulers Reinforced . | . . . Active Scanning Responses . | . . . Cargo Convoy Interrupts . | . . . Stealth | -11 -10 -9 --------- Run | Yrd Mat Mat Distress Signals 4 | . 2 2 Communications Jammed . | . . . Distress Signals . | . . . Times Spotted 50 | . 23 27 Peak Tracking Total 7 | . 5 7 Tactical Retreats 3 | . 1 2 Traps | -11 -10 -9 ------- Run | Yrd Mat Mat Traps Triggered 4 | . 2 2 Indirectly . | . . . Trap Hack Attempts . | . . . Triggered . | . . . Disarmed . | . . . Reprogrammed . | . . . Reused . | . . . Traps Extracted . | . . . Installed . | . . . Triggered . | . . . Machines | -11 -10 -9 ---------- Run | Yrd Mat Mat Machines Disabled 3 | . 1 2 Max in Single Turn 2 | . 1 2 Machines Repaired . | . . . Machines Dismantled . | . . . Machines Sabotaged . | . . . Overloaded Fab Kills . | . . . Hacking | -11 -10 -9 --------- Run | Yrd Mat Mat Machines Accessed 13 | . 10 3 Terminals 9 | . 7 2 Fabricators . | . . . Repair Stations 1 | . 1 . Recycling Units 2 | . 2 . Scanalyzers 1 | . . 1 Garrison Access . | . . . Total Hacks 58 | . 47 11 Successful 36 | . 29 7 Failed 22 | . 18 4 Catastrophic . | . . . Database Lockouts . | . . . Manual 37 | . 26 11 Terminals 44 | . 36 8 Fabricators . | . . . Repair Stations 3 | . 3 . Recycling Units 8 | . 8 . Scanalyzers 3 | . . 3 Garrison Access . | . . . Terminal Hacks 8 | . 8 . Record 1 | . 1 . Robot Analysis 1 | . 1 . Branch Access Points 1 | . 1 . Terminal Index 1 | . 1 . Repair Station Index 1 | . 1 . Locate Traps 1 | . 1 . Zone Layout 2 | . 2 . Fabricator Hacks . | . . . Repair Station Hacks 1 | . 1 . Scan Component 1 | . 1 . Recycling Unit Hacks 2 | . 2 . Retrieve Components 2 | . 2 . Scanalyzer . | . . . Garrison Access Hacks . | . . . Unauthorized Hacks 25 | . 18 7 Terminals 21 | . 16 5 Track 8 | . 6 2 Botnet 6 | . 4 2 Disrupt 6 | . 5 1 Operators 1 | . 1 . Fabricators . | . . . Repair Stations . | . . . Recycling Units 2 | . 2 . Tunnel 2 | . 2 . Scanalyzers 2 | . . 2 Researchers 1 | . . 1 Extract 1 | . . 1 Garrison Access . | . . . Data Cores Recovered . | . . . Used . | . . . Hacking Detections 12 | . 10 2 Full Trace Events 10 | . 8 2 Feedback Events . | . . . Feedback Blocked . | . . . Robot Schematics Acquired . | . . . Robots Built . | . . . Authchips . | . . . Time . | . . . Total Robot Build Rating . | . . . Part Schematics Acquired 1 | . . 1 Parts Built . | . . . Authchips . | . . . Time . | . . . Total Part Build Rating . | . . . Parts Repaired . | . . . Time . | . . . Parts Recycled . | . . . Recycled Matter . | . . . Retrieved Matter . | . . . Retrieved Components 9 | . 9 . Parts Scanalyzed . | . . . Part Schematics Acquired . | . . . Parts Damaged . | . . . Bothacking | -11 -10 -9 ------------ Run | Yrd Mat Mat Used RIF Installer . | . . . Robots Hacked . | . . . Non-combat . | . . . Combat . | . . . Robot Hacks Applied . | . . . Relay Couplers Released . | . . . Fabnet Peak Effective % . | . . . Robots Rewired . | . . . Allies Hacked . | . . . Hacks Repelled . | . . . Allies | -11 -10 -9 -------- Run | Yrd Mat Mat Total Allies . | . . . Largest Group . | . . . Highest-Rated Group . | . . . Highest-Rated Ally . | . . . Total Orders . | . . . Ally Attacks . | . . . Total Damage . | . . . Kills . | . . . Allies Corrupted . | . . . Allies Melted . | . . . Intel | -11 -10 -9 ------- Run | Yrd Mat Mat Robot Analysis Total 1 | . 1 . Derelict Logs Recovered . | . . . Drone Launches . | . . . Drone Recoveries . | . . . Exploration | -11 -10 -9 ------------- Run | Yrd Mat Mat Turns Passed 1956 | 54 1366 536 Spaces Moved 929 | 46 666 217 Core 50 | 23 . 27 Treads 816 | . 626 190 Legs 63 | 23 40 . Wheels . | . . . Hover . | . . . Flight . | . . . Fastest Speed 50 | 50 120 50 Average Speed 155 | 85 157 162 Slowest Speed 240 | 120 160 240 Overloaded Moves . | . . . Propulsion Burnouts . | . . . Robots Hopped . | . . . Cave-ins Triggered . | . . . Exploration Rate (%) 42 | 4 95 27 Regions Visited 2 Branch Regions . Pre-discovered Areas 2 | . 2 . Known Exits Taken 1 | . 1 . Unknown Exits Taken 1 | 1 . . Scrap Searched . | . . . Spaces Dug . | . . . Terrain Destroyed 55 | . 3 52 Melee . | . . . Projectile 29 | . 3 26 AOE 26 | . . 26 Terrain Rammed . | . . . Walls Destroyed . | . . . Machines Disabled . | . . . Actions | -11 -10 -9 --------- Run | Yrd Mat Mat Total 1263 | 60 892 311 Wait 159 | 4 134 21 Move 927 | 45 665 217 Hop . | . . . Pick Up 28 | 7 14 7 Fast Attach 10 | 1 3 6 Attach 18 | 3 9 6 Detach . | . . . Swap 8 | . 7 1 Drop 20 | . 13 7 Fire 82 | . 46 36 Melee . | . . . Ram 9 | . . 9 Kick . | . . . Crush 2 | . 1 1 Escape Stasis . | . . . Rewire . | . . . Trap . | . . . Miscellaneous . | . . . Route ------- -11/Scrapyard -10/Materials (discovered 5 exits: *Mat x3 / *Min x2) -9/Materials History --------- Turn | Location | Event 13 | -11/Scrapyard | Discovered new exit (range 15) 55 | -11/Scrapyard | Entered Materials 190 | -10/Materials | Discovered new exit (range 3) 308 | -10/Materials | Build established: Mutant 481 | -10/Materials | Discovered new exit (range 14) 600 | -10/Materials | Identified exit to Materials 656 | -10/Materials | Discovered new exit (range 7) 664 | -10/Materials | Identified exit to Mines 742 | -10/Materials | Discovered exit to Materials (range 7) 1055 | -10/Materials | Derelicts attacked the area 1421 | -10/Materials | Entered another Materials area 1421 | -9/Materials | Evolved 2 slots: Weapon x2 1730 | -9/Materials | Build established: Gunner 1922 | -9/Materials | Core integrity fell below 50% 1944 | -9/Materials | Core integrity fell below 20% 1957 | -9/Materials | Core destroyed Last Messages --------------- 01933_ Y-45 Defender destroyed. 01937_ Destroyed Flight Unit. 01937_ G-34 Mercenary destroyed. 01937_ Rocket Launcher destroyed. 01937_ Destroyed Rocket Launcher. 01939_ Acquired Backup Plating I. 01942_ Acquired 14 matter. 01943_ Backup Plating I destroyed. 01943_ Acquired Backup Plating I. 01947_ Slammed into S-10 Pest. 01948_ R-06 Scavenger collects Heat Sink. 01950_ Slammed into S-10 Pest. 01953_ Signal Interpreter broken. 01953_ Destabilizing: Short circuit. 01954_ Slammed into S-10 Pest. 01954_ Destabilizing: Core damaged (-16). 01955_ Slammed into S-10 Pest. 01956_ Backup Plating I destroyed. 01956_ Slammed into S-10 Pest. 01957_ Destabilizing: Core damaged (-12). Map ----- +----------------------------------------------------+ | | | | | ?????????????????????????????????????????????????? | | ?????????????????????????????????????????????????? | | ?????????????????????????????????????????????????? | | ?????????????????????????????????????????????????? | | ????????????????##???????????????????????????????? | | ???????????????? ??????????????????????????????? | | ???????????????? ??????????????????????????????? | | #???????????????"" ???????#######???????????????? | | #??????????????"" ??###### # # ##??????????????? | | #?????????????""" ##[ """ ##?????????????? | | #????????????# # " #?????????????? | | #???######+######+## ##?????????????? | | #??# [ = #?????????????? | | #??# %= !! ##?????????????? | | #??# !! #?????????????? | | #??????##########+## # ! ##?????????????? | | #?????????????# ## g ##??????????????? | | #?????????????# ####/###+####???????????????? | | #??? ???????# #??#s#?# #??????????????????? | | #??# #??????# """#??# #?# #??????????????????? | | #??# #??????# """#??# #?# #??????????????????? | | ##?# #??????# """#### #?# #??????????????????? | | "#?# #??????# + ### ###????????????????? | | ##?# #??????##+#### s@ #????????????????? | | #??# #???????# #??# #????????????????? | | #??# #???????# #??# #????????????????? | | #??# #???????# #??#### #????????????????? | | #??# #???????# #?????# #????????????????? | | ##?# #???????# #?????# m #????????????????? | | "#?# +???????# ####### #????????????????? | | "#?# #??????## =%% +????????????????? | | "### #???#?##"w##"""#### #????????????????? | | #####"# ####??? #????????????????? | | % #??????## #????????????????? | | % g T #???????? #????????????????? | | #????????k #????????????????? | | ############## #????????? #????????????????? | | ###???????????#######????????????????????????????? | | #????????????????????????????????????????????????? | | #????????????????????????????????????????????????? | | #????????????????????????????????????????????????? | | #????????????????????????????????????????????????? | | "????????????????????????????????????????????????? | | #????????????????????????????????????????????????? | | #????????????????????????????????????????????????? | | #????????????????????????????????????????????????? | | ????????????????????????????????????????????????? | | ?????????????????????????????????????????????????? | +----------------------------------------------------+ Best States ------------- Heat Dissipation 28 Energy Generation 10 Energy Capacity 250 Matter Stores 300 Matter Capacity 300 Sight Range 16 Terrain Scan Range 16 Terrain Scan Density 10 ECM Strength 1 Armor Coverage 80 Evasion (%) 55 Targeting Accuracy 5 Recoil Reduction 2 Item Schematics ----------------- VTOL Module | -9/Materials | Extracted Robot Schematics ------------------ None Fabricated ------------ Nothing Alien Tech Used ----------------- None Achievements -------------- None Challenges ------------ None Game ------ Seed MetafiberSigixArchive Manual? 0 Play Time 00:31:05 Cumulative 12.5 hours Start 2024.04.12 @ 22:02:30 End 2024.04.12 @ 22:36:19 Sessions 1 Manual Loads 0 Difficulty Rogue Special Mode None Game No. 16 Rogue 16 Adventurer 0 Explorer 0 Win Type - Total 0 Types 0/0/0/0/0/0/0/0/0 Lore% 9 Gallery% 18 Achievement% 18 Wizard Run 0 Options --------- Layout 0 ASCII 0 Keyboard 0 Movement Mouse Keybinds 0 Fullscreen 2 Font 18/SmallcapsGlow Map View 38x25 Zoom Use 86% Tactical HUD 1 Map Filters NONE Filters NONE Steam 1 RUN: bc09761e-6328-473a-9519-5f60ec587d45